fUST/lending_fUST_20260505
["ID","MTS","AMOUNT","RATE_DAILY","PERIOD"]
[421606457,1777947041000,-500.0,0.00011524,2]
[421606458,1777947041000,-500.0,0.00011524,2]
[421606459,1777947041000,-500.0,0.00011524,2]
[421606456,1777947041000,-500.0,0.00011524,2]
[421606489,1777947042000,-560.6225,0.00011525,2]
[421606503,1777947043000,-251.11704093,0.00011015,2]
[421606505,1777947043000,-380.183,0.00011015,2]
[421606504,1777947043000,-3449.19726663,0.00011015,2]
[421606506,1777947043000,-919.50269244,0.00011015,2]
[421606510,1777947043000,-2092.84330633,0.00011525,2]
[421606508,1777947043000,-1747.70202233,0.00011525,2]
[421606507,1777947043000,-11418.00521686,0.00011525,2]
[421606509,1777947043000,-2907.15669367,0.00011525,2]
[421606511,1777947043000,-7524.02226955,0.00011525,2]
[421606554,1777947046000,-89671.52429767,0.00011525,2]
[421606541,1777947046000,-5173.0,0.00011525,2]
[421606566,1777947771000,355.999593,0.00020821,120]
[421606583,1777948232000,-3307.58296837,9.7e-05,2]
[421606582,1777948232000,-3645.86752267,9.603e-05,2]
[421606584,1777948232000,-517.75085583,9.7e-05,2]
[421606585,1777948232000,-1174.6661758,9.7e-05,2]
[421606586,1777948232000,-205.89824294,9.798e-05,2]
[421606633,1777948238000,-500.0,0.00011447,2]
[421606638,1777948238000,-151.0,0.000115,2]
[421606632,1777948238000,-500.0,0.00011447,2]
[421606626,1777948238000,-500.0,0.00011447,2]
[421606628,1777948238000,-645.01720861,0.00011447,2]
[421606629,1777948238000,-500.0,0.00011447,2]
[421606627,1777948238000,-500.0,0.00011447,2]
[421606625,1777948238000,-500.0,0.00011447,2]
[421606624,1777948238000,-279.85273624,0.00011447,2]
[421606631,1777948238000,-500.0,0.00011447,2]
[421606623,1777948238000,-153.93574707,0.00011447,2]
[421606621,1777948238000,-77.23180089,0.00011447,2]
[421606630,1777948238000,-500.0,0.00011447,2]
[421606622,1777948238000,-151.5,0.00011447,2]
[421606616,1777948238000,-500.0,0.00011447,2]
[421606618,1777948238000,-350.19843769,0.00011447,2]
[421606613,1777948238000,-500.0,0.00011,2]
[421606614,1777948238000,-500.0,0.00011447,2]
[421606634,1777948238000,-500.0,0.00011447,2]
[421606612,1777948238000,-250.38916009,0.00010994,2]
[421606611,1777948238000,-324.8647177,0.00010919,2]
[421606610,1777948238000,-151.0,0.00010919,2]
[421606608,1777948238000,-176.3283991,0.00010918,2]
[421606620,1777948238000,-74.26819911,0.00011447,2]
[421606619,1777948238000,-151.5,0.00011447,2]
[421606609,1777948238000,-456.2076372,0.00010919,2]
[421606607,1777948238000,-123.6716009,0.00010918,2]
[421606605,1777948238000,-21.42755367,9.798e-05,2]
[421606606,1777948238000,-307.90084543,9.947e-05,2]
[421606615,1777948238000,-500.0,0.00011447,2]
[421606617,1777948238000,-226.5774929,0.00011447,2]
[421606635,1777948238000,-500.0,0.00011447,2]
[421606641,1777948238000,-269.5154316,0.00011507,2]
[421606640,1777948238000,-327.02752236,0.00011506,2]
[421606663,1777948238000,-205.31203652,0.00011525,2]
[421606666,1777948238000,-304.8345716,0.00011599,2]
[421606664,1777948238000,-152.0,0.00011543,7]
[421606659,1777948238000,-341.0,0.00011525,2]
[421606662,1777948238000,-649.0,0.00011525,2]
[421606665,1777948238000,-500.0,0.00011599,2]
[421606661,1777948238000,-649.0,0.00011525,2]
[421606660,1777948238000,-649.0,0.00011525,2]
[421606658,1777948238000,-649.0,0.00011525,2]
[421606656,1777948238000,-649.0,0.00011525,2]
[421606668,1777948238000,-500.0,0.00011599,2]
[421606667,1777948238000,-500.0,0.00011599,2]
[421606657,1777948238000,-341.0,0.00011525,2]
[421606651,1777948238000,-381.05233135,0.00011525,2]
[421606669,1777948238000,-500.0,0.00011599,2]
[421606649,1777948238000,-341.0,0.00011525,2]
[421606652,1777948238000,-341.0,0.00011525,2]
[421606639,1777948238000,-327.02752238,0.000115,2]
[421606637,1777948238000,-230.64592162,0.00011447,2]
[421606642,1777948238000,-176.4767623,0.00011507,2]
[421606644,1777948238000,-742.0893865,0.00011507,2]
[421606648,1777948238000,-500.0,0.00011525,2]
[421606645,1777948238000,-327.02752236,0.00011512,2]
[421606636,1777948238000,-500.0,0.00011447,2]
[421606643,1777948238000,-13658.1214801,0.00011507,2]
[421606655,1777948238000,-649.0,0.00011525,2]
[421606646,1777948238000,-327.02752236,0.00011517,2]
[421606647,1777948238000,-327.02752236,0.00011523,2]
[421606654,1777948238000,-193.17847629,0.00011525,2]
[421606653,1777948238000,-164.0,0.00011525,2]
[421606650,1777948238000,-341.0,0.00011525,2]
[421606714,1777948239000,-500.0,0.00011599,2]
[421606715,1777948239000,-500.0,0.00011599,2]
[421606712,1777948239000,-500.0,0.00011599,2]
[421606707,1777948239000,-500.0,0.00011599,2]
[421606705,1777948239000,-500.0,0.00011599,2]
[421606706,1777948239000,-500.0,0.00011599,2]
[421606704,1777948239000,-500.0,0.00011599,2]
[421606703,1777948239000,-500.0,0.00011599,2]
[421606711,1777948239000,-500.0,0.00011599,2]
[421606701,1777948239000,-500.0,0.00011599,2]
[421606717,1777948239000,-500.0,0.00011599,2]
[421606702,1777948239000,-500.0,0.00011599,2]
[421606700,1777948239000,-500.0,0.00011599,2]
[421606721,1777948239000,-500.0,0.00011599,2]
[421606718,1777948239000,-500.0,0.00011599,2]
[421606724,1777948239000,-500.0,0.00011599,2]
[421606723,1777948239000,-500.0,0.00011599,2]
[421606719,1777948239000,-500.0,0.00011599,2]
[421606713,1777948239000,-500.0,0.00011599,2]
[421606722,1777948239000,-399.09295268,0.00011599,2]
[421606729,1777948239000,-500.0,0.00011599,2]
[421606720,1777948239000,-500.0,0.00011599,2]
[421606726,1777948239000,-500.0,0.00011599,2]
[421606737,1777948239000,-500.0,0.00011599,2]
[421606738,1777948239000,-500.0,0.00011599,2]
[421606727,1777948239000,-500.0,0.00011599,2]
[421606730,1777948239000,-500.0,0.00011599,2]
[421606699,1777948239000,-500.0,0.00011599,2]
[421606716,1777948239000,-500.0,0.00011599,2]
[421606709,1777948239000,-500.0,0.00011599,2]
[421606687,1777948239000,-332.5044069,0.00011599,2]
[421606710,1777948239000,-500.0,0.00011599,2]
[421606671,1777948239000,-500.0,0.00011599,2]
[421606672,1777948239000,-500.0,0.00011599,2]
[421606677,1777948239000,-500.0,0.00011599,2]
[421606676,1777948239000,-500.0,0.00011599,2]
[421606678,1777948239000,-500.0,0.00011599,2]
[421606675,1777948239000,-500.0,0.00011599,2]
[421606674,1777948239000,-500.0,0.00011599,2]
[421606673,1777948239000,-500.0,0.00011599,2]
[421606670,1777948239000,-500.0,0.00011599,2]
[421606679,1777948239000,-500.0,0.00011599,2]
[421606682,1777948239000,-500.0,0.00011599,2]
[421606681,1777948239000,-176.36295469,0.00011599,2]
[421606680,1777948239000,-500.0,0.00011599,2]
[421606697,1777948239000,-500.0,0.00011599,2]
[421606683,1777948239000,-500.0,0.00011599,2]
[421606684,1777948239000,-182.15273141,0.00011599,2]
[421606685,1777948239000,-500.0,0.00011599,2]
[421606694,1777948239000,-500.0,0.00011599,2]
[421606696,1777948239000,-500.0,0.00011599,2]
[421606695,1777948239000,-500.0,0.00011599,2]
[421606686,1777948239000,-500.0,0.00011599,2]
[421606688,1777948239000,-500.0,0.00011599,2]
[421606690,1777948239000,-500.0,0.00011599,2]
[421606691,1777948239000,-500.0,0.00011599,2]
[421606692,1777948239000,-500.0,0.00011599,2]
[421606693,1777948239000,-179.74062776,0.00011599,2]
[421606698,1777948239000,-500.0,0.00011599,2]
[421606708,1777948239000,-500.0,0.00011599,2]
[421606689,1777948239000,-500.0,0.00011599,2]
[421606728,1777948239000,-500.0,0.00011599,2]
[421606725,1777948239000,-500.0,0.00011599,2]
[421606731,1777948239000,-500.0,0.00011599,2]
[421606774,1777948239000,-557.5788265,0.00011715,2]
[421606771,1777948239000,-151.0,0.0001166,2]
[421606772,1777948239000,-151.0,0.0001166,2]
[421606769,1777948239000,-151.0,0.0001166,2]
[421606770,1777948239000,-151.0,0.0001166,2]
[421606776,1777948239000,-514.44020027,0.00011716,2]
[421606768,1777948239000,-151.0,0.0001166,2]
[421606775,1777948239000,-162.7601585,0.00011716,2]
[421606773,1777948239000,-151.0,0.000117,2]
[421606778,1777948239000,-156.696,0.00011724,2]
[421606781,1777948239000,-244.1891963,0.0001173,2]
[421606780,1777948239000,-327.5570293,0.0001173,2]
[421606782,1777948239000,-456.9730369,0.0001173,2]
[421606767,1777948239000,-151.0,0.0001166,2]
[421606777,1777948239000,-540.58385981,0.00011716,2]
[421606783,1777948239000,-500.0,0.00011768,2]
[421606785,1777948239000,-151.0,0.000118,2]
[421606793,1777948239000,-151.0,0.00012,2]
[421606794,1777948239000,-151.0,0.00012,2]
[421606784,1777948239000,-707.58137617,0.0001177,2]
[421606796,1777948239000,-600.0,0.00012062,2]
[421606787,1777948239000,-151.0,0.000119,2]
[421606786,1777948239000,-9083.3410377,0.00011823,2]
[421606788,1777948239000,-151.0,0.000119,2]
[421606790,1777948239000,-363.32299761,0.00011947,2]
[421606791,1777948239000,-500.0,0.0001199,2]
[421606792,1777948239000,-420.0,0.00011998,2]
[421606789,1777948239000,-359.76,0.00011927,2]
[421606779,1777948239000,-151.0,0.0001173,2]
[421606766,1777948239000,-151.0,0.0001166,2]
[421606732,1777948239000,-500.0,0.00011599,2]
[421606762,1777948239000,-151.0,0.0001166,2]
[421606736,1777948239000,-500.0,0.00011599,2]
[421606735,1777948239000,-500.0,0.00011599,2]
[421606733,1777948239000,-500.0,0.00011599,2]
[421606734,1777948239000,-400.0,0.00011599,2]
[421606739,1777948239000,-500.0,0.00011599,2]
[421606741,1777948239000,-4270.97783508,0.000116,2]
[421606740,1777948239000,-595.0,0.00011599,2]
[421606742,1777948239000,-10230.13825567,0.000116,2]
[421606758,1777948239000,-151.0,0.0001166,2]
[421606745,1777948239000,-162.71929446,0.000116,2]
[421606744,1777948239000,-158.12389161,0.000116,2]
[421606748,1777948239000,-225.76861145,0.000116,2]
[421606749,1777948239000,-127270.64699507,0.000116,2]
[421606751,1777948239000,-317170.55100704,0.00011621,2]
[421606743,1777948239000,-8214.11060463,0.000116,2]
[421606746,1777948239000,-194.24395295,0.000116,2]
[421606747,1777948239000,-205.66074187,0.000116,2]
[421606760,1777948239000,-151.0,0.0001166,2]
[421606761,1777948239000,-151.0,0.0001166,2]
[421606755,1777948239000,-151.0,0.0001166,2]
[421606757,1777948239000,-151.0,0.0001166,2]
[421606754,1777948239000,-151.0,0.0001166,2]
[421606759,1777948239000,-151.0,0.0001166,2]
[421606752,1777948239000,-537.6845,0.0001166,2]
[421606765,1777948239000,-151.0,0.0001166,2]
[421606764,1777948239000,-151.0,0.0001166,2]
[421606753,1777948239000,-151.0,0.0001166,2]
[421606763,1777948239000,-151.0,0.0001166,2]
[421606750,1777948239000,-151.0,0.000116,2]
[421606756,1777948239000,-151.0,0.0001166,2]
[421606835,1777948240000,-2580.988,0.00012328,2]
[421606850,1777948240000,-500.0,0.00012328,2]
[421606838,1777948240000,-500.0,0.00012328,2]
[421606837,1777948240000,-500.0,0.00012328,2]
[421606848,1777948240000,-679.75,0.00012328,2]
[421606829,1777948240000,-191.66676416,0.00012328,2]
[421606845,1777948240000,-500.0,0.00012328,2]
[421606836,1777948240000,-2580.988,0.00012328,2]
[421606832,1777948240000,-500.0,0.00012328,2]
[421606830,1777948240000,-216.69906001,0.00012328,2]
[421606834,1777948240000,-500.0,0.00012328,2]
[421606847,1777948240000,-500.0,0.00012328,2]
[421606851,1777948240000,-393.92295064,0.00012328,2]
[421606857,1777948240000,-500.0,0.00012328,2]
[421606843,1777948240000,-500.0,0.00012328,2]
[421606842,1777948240000,-614.47,0.00012328,2]
[421606841,1777948240000,-1548.16,0.00012328,2]
[421606840,1777948240000,-500.0,0.00012328,2]
[421606854,1777948240000,-306.01272359,0.00012328,2]
[421606852,1777948240000,-842.79,0.00012328,2]
[421606856,1777948240000,-500.0,0.00012328,2]
[421606855,1777948240000,-535.82,0.00012328,2]
[421606853,1777948240000,-500.0,0.00012328,2]
[421606866,1777948240000,-561.01,0.00012328,2]
[421606858,1777948240000,-500.0,0.00012328,2]
[421606860,1777948240000,-500.0,0.00012328,2]
[421606865,1777948240000,-286.58546641,0.00012328,2]
[421606823,1777948240000,-500.0,0.00012328,2]
[421606839,1777948240000,-500.0,0.00012328,2]
[421606824,1777948240000,-1711.75,0.00012328,2]
[421606811,1777948240000,-500.0,0.00012328,2]
[421606831,1777948240000,-500.0,0.00012328,2]
[421606863,1777948240000,-500.0,0.00012328,2]
[421606799,1777948240000,-60072.01819152,0.000121,5]
[421606800,1777948240000,-151.0,0.000121,2]
[421606802,1777948240000,-270.79469531,0.000122,2]
[421606808,1777948240000,-151.0,0.000123,2]
[421606801,1777948240000,-184.75594487,0.000122,2]
[421606805,1777948240000,-151.0,0.000122,2]
[421606807,1777948240000,-151.0,0.000122,2]
[421606804,1777948240000,-356.83344576,0.000122,2]
[421606803,1777948240000,-301.57002794,0.000122,2]
[421606809,1777948240000,-999.42,0.00012328,2]
[421606806,1777948240000,-151.0,0.000122,2]
[421606810,1777948240000,-500.0,0.00012328,2]
[421606827,1777948240000,-500.0,0.00012328,2]
[421606812,1777948240000,-500.0,0.00012328,2]
[421606814,1777948240000,-500.0,0.00012328,2]
[421606821,1777948240000,-500.0,0.00012328,2]
[421606822,1777948240000,-500.0,0.00012328,2]
[421606819,1777948240000,-628.17469592,0.00012328,2]
[421606820,1777948240000,-664.84,0.00012328,2]
[421606816,1777948240000,-500.0,0.00012328,2]
[421606817,1777948240000,-500.0,0.00012328,2]
[421606815,1777948240000,-1178.29,0.00012328,2]
[421606818,1777948240000,-500.0,0.00012328,2]
[421606826,1777948240000,-500.0,0.00012328,2]
[421606825,1777948240000,-500.0,0.00012328,2]
[421606833,1777948240000,-500.0,0.00012328,2]
[421606828,1777948240000,-500.0,0.00012328,2]
[421606813,1777948240000,-500.0,0.00012328,2]
[421606861,1777948240000,-500.0,0.00012328,2]
[421606798,1777948240000,-151.0,0.000121,2]
[421606868,1777948240000,-500.0,0.00012328,2]
[421606908,1777948240000,-500.0,0.00012328,2]
[421606910,1777948240000,-500.0,0.00012328,2]
[421606912,1777948240000,-854.72,0.00012328,2]
[421606909,1777948240000,-500.0,0.00012328,2]
[421606907,1777948240000,-507.61702996,0.00012328,2]
[421606911,1777948240000,-500.0,0.00012328,2]
[421606920,1777948240000,-582.7,0.00012328,2]
[421606915,1777948240000,-798.19,0.00012328,2]
[421606916,1777948240000,-500.26420186,0.00012328,2]
[421606917,1777948240000,-500.0,0.00012328,2]
[421606919,1777948240000,-500.0,0.00012328,2]
[421606918,1777948240000,-621.27524899,0.00012328,2]
[421606921,1777948240000,-500.0,0.00012328,2]
[421606914,1777948240000,-224.11769109,0.00012328,2]
[421606923,1777948240000,-856.72,0.00012328,2]
[421606926,1777948240000,-500.0,0.00012328,2]
[421606927,1777948240000,-500.0,0.00012328,2]
[421606925,1777948240000,-209.18973786,0.00012328,2]
[421606924,1777948240000,-500.0,0.00012328,2]
[421606928,1777948240000,-500.0,0.00012328,2]
[421606932,1777948240000,-500.0,0.00012328,2]
[421606930,1777948240000,-1802.41,0.00012328,2]
[421606929,1777948240000,-500.0,0.00012328,2]
[421606933,1777948240000,-500.0,0.00012328,2]
[421606931,1777948240000,-500.0,0.00012328,2]
[421606934,1777948240000,-500.0,0.00012328,2]
[421606935,1777948240000,-500.0,0.00012328,2]
[421606936,1777948240000,-500.0,0.00012328,2]
[421606922,1777948240000,-3203.04,0.00012328,2]
[421606913,1777948240000,-500.0,0.00012328,2]
[421606937,1777948240000,-500.0,0.00012328,2]
[421606903,1777948240000,-691.33,0.00012328,2]
[421606906,1777948240000,-500.0,0.00012328,2]
[421606881,1777948240000,-500.0,0.00012328,2]
[421606872,1777948240000,-500.0,0.00012328,2]
[421606871,1777948240000,-996.93,0.00012328,2]
[421606880,1777948240000,-500.0,0.00012328,2]
[421606882,1777948240000,-500.0,0.00012328,2]
[421606870,1777948240000,-500.0,0.00012328,2]
[421606874,1777948240000,-2262.98,0.00012328,2]
[421606869,1777948240000,-1103.16,0.00012328,2]
[421606879,1777948240000,-932.03,0.00012328,2]
[421606883,1777948240000,-500.0,0.00012328,2]
[421606876,1777948240000,-500.0,0.00012328,2]
[421606877,1777948240000,-500.0,0.00012328,2]
[421606878,1777948240000,-500.0,0.00012328,2]
[421606885,1777948240000,-500.0,0.00012328,2]
[421606859,1777948240000,-500.0,0.00012328,2]
[421606886,1777948240000,-724.28,0.00012328,2]
[421606884,1777948240000,-500.0,0.00012328,2]
[421606904,1777948240000,-500.0,0.00012328,2]
[421606905,1777948240000,-500.2098366,0.00012328,2]
[421606902,1777948240000,-1801.69,0.00012328,2]
[421606888,1777948240000,-500.0,0.00012328,2]
[421606899,1777948240000,-577.98,0.00012328,2]
[421606889,1777948240000,-619.99565387,0.00012328,2]
[421606901,1777948240000,-501.85704755,0.00012328,2]
[421606887,1777948240000,-205.45606183,0.00012328,2]
[421606897,1777948240000,-500.0,0.00012328,2]
[421606893,1777948240000,-500.0,0.00012328,2]
[421606895,1777948240000,-2035.54,0.00012328,2]
[421606900,1777948240000,-500.0,0.00012328,2]
[421606891,1777948240000,-500.0,0.00012328,2]
[421606981,1777948241000,-500.0,0.00012328,2]
[421606982,1777948241000,-500.0,0.00012328,2]
[421606980,1777948241000,-500.0,0.00012328,2]
[421606987,1777948241000,-986.34,0.00012328,2]
[421606978,1777948241000,-2151.56,0.00012328,2]
[421606977,1777948241000,-500.0,0.00012328,2]
[421606975,1777948241000,-500.0,0.00012328,2]
[421606973,1777948241000,-500.0,0.00012328,2]
[421606967,1777948241000,-500.0,0.00012328,2]
[421606971,1777948241000,-834.1,0.00012328,2]
[421606966,1777948241000,-679.58,0.00012328,2]
[421606974,1777948241000,-500.0,0.00012328,2]
[421606988,1777948241000,-2050.89,0.00012328,2]
[421606985,1777948241000,-685.93,0.00012328,2]
[421606990,1777948241000,-500.51601215,0.00012328,2]
[421606979,1777948241000,-1389.42,0.00012328,2]
[421606989,1777948241000,-500.0,0.00012328,2]
[421606984,1777948241000,-1150.74,0.00012328,2]
[421606970,1777948241000,-500.0,0.00012328,2]
[421606983,1777948241000,-698.83,0.00012328,2]
[421606986,1777948241000,-2378.74,0.00012328,2]
[421606992,1777948241000,-501.61411198,0.00012328,2]
[421606993,1777948241000,-500.30159023,0.00012328,2]
[421607004,1777948241000,-505.75800757,0.00012328,2]
[421606996,1777948241000,-627.96,0.00012328,2]
[421606994,1777948241000,-500.26738025,0.00012328,2]
[421606998,1777948241000,-500.71288113,0.00012328,2]
[421606995,1777948241000,-500.0,0.00012328,2]
[421606991,1777948241000,-500.0,0.00012328,2]
[421606968,1777948241000,-1000.0,0.00012328,2]
[421606962,1777948241000,-500.0,0.00012328,2]
[421606972,1777948241000,-500.0,0.00012328,2]
[421607003,1777948241000,-500.0,0.00012328,2]
[421606939,1777948241000,-2342.59,0.00012328,2]
[421606938,1777948241000,-500.0,0.00012328,2]
[421606951,1777948241000,-739.53,0.00012328,2]
[421606940,1777948241000,-980.61,0.00012328,2]
[421606941,1777948241000,-750.23,0.00012328,2]
[421606950,1777948241000,-2631.56,0.00012328,2]
[421606946,1777948241000,-500.0,0.00012328,2]
[421606945,1777948241000,-500.0,0.00012328,2]
[421606943,1777948241000,-500.0,0.00012328,2]
[421606949,1777948241000,-871.19,0.00012328,2]
[421606947,1777948241000,-519.96430316,0.00012328,2]
[421606942,1777948241000,-500.0,0.00012328,2]
[421606969,1777948241000,-2176.25,0.00012328,2]
[421606948,1777948241000,-565.01,0.00012328,2]
[421606953,1777948241000,-4737.51,0.00012328,2]
[421606952,1777948241000,-500.0,0.00012328,2]
[421606963,1777948241000,-1154.41,0.00012328,2]
[421606964,1777948241000,-500.0,0.00012328,2]
[421606954,1777948241000,-973.47,0.00012328,2]
[421606956,1777948241000,-500.0,0.00012328,2]
[421606955,1777948241000,-500.0,0.00012328,2]
[421606958,1777948241000,-500.0,0.00012328,2]
[421606961,1777948241000,-500.0,0.00012328,2]
[421606960,1777948241000,-737.9,0.00012328,2]
[421606959,1777948241000,-500.0,0.00012328,2]
[421606965,1777948241000,-1331.97,0.00012328,2]
[421606976,1777948241000,-500.0,0.00012328,2]
[421606944,1777948241000,-689.05,0.00012328,2]
[421606957,1777948241000,-927.27,0.00012328,2]
[421606999,1777948241000,-500.19644745,0.00012328,2]
[421607002,1777948241000,-1217.46,0.00012328,2]
[421607038,1777948241000,-630.61,0.00012328,2]
[421607035,1777948241000,-501.10492603,0.00012328,2]
[421607042,1777948241000,-4757.34,0.00012328,2]
[421607037,1777948241000,-502.21624164,0.00012328,2]
[421607036,1777948241000,-507.93774401,0.00012328,2]
[421607043,1777948241000,-695.85,0.00012328,2]
[421607040,1777948241000,-2626.43,0.00012328,2]
[421607044,1777948241000,-500.30138989,0.00012328,2]
[421607039,1777948241000,-596.82,0.00012328,2]
[421607041,1777948241000,-501.48996978,0.00012328,2]
[421607046,1777948241000,-500.55839074,0.00012328,2]
[421607053,1777948241000,-500.0,0.00012328,2]
[421607050,1777948241000,-501.14689658,0.00012328,2]
[421607045,1777948241000,-517.69360229,0.00012328,2]
[421607052,1777948241000,-639.73363514,0.00012328,2]
[421607047,1777948241000,-500.0,0.00012328,2]
[421607048,1777948241000,-721.3,0.00012328,2]
[421607049,1777948241000,-759.14,0.00012328,2]
[421607054,1777948241000,-201.62713943,0.00012328,2]
[421607055,1777948241000,-500.68074404,0.00012328,2]
[421607056,1777948241000,-500.0,0.00012328,2]
[421607058,1777948241000,-510.10450061,0.00012328,2]
[421607057,1777948241000,-500.0,0.00012328,2]
[421607060,1777948241000,-549.75,0.00012328,2]
[421607059,1777948241000,-500.0,0.00012328,2]
[421607061,1777948241000,-712.25,0.00012328,2]
[421607062,1777948241000,-500.0,0.00012328,2]
[421606997,1777948241000,-500.0,0.00012328,2]
[421607051,1777948241000,-500.90055048,0.00012328,2]
[421607034,1777948241000,-500.0,0.00012328,2]
[421607063,1777948241000,-500.15675764,0.00012328,2]
[421607032,1777948241000,-154.252199,0.00012328,2]
[421607033,1777948241000,-500.96510658,0.00012328,2]
[421607000,1777948241000,-788.36,0.00012328,2]
[421607005,1777948241000,-508.8782487,0.00012328,2]
[421607006,1777948241000,-501.13710293,0.00012328,2]
[421607008,1777948241000,-500.0,0.00012328,2]
[421607011,1777948241000,-500.0,0.00012328,2]
[421607013,1777948241000,-500.0,0.00012328,2]
[421607009,1777948241000,-381.13257401,0.00012328,2]
[421607018,1777948241000,-501.39850364,0.00012328,2]
[421607016,1777948241000,-153.47867924,0.00012328,2]
[421607007,1777948241000,-500.0,0.00012328,2]
[421607014,1777948241000,-1290.492,0.00012328,2]
[421607010,1777948241000,-500.0,0.00012328,2]
[421607012,1777948241000,-540.38,0.00012328,2]
[421607001,1777948241000,-500.0,0.00012328,2]
[421607017,1777948241000,-501.34977528,0.00012328,2]
[421607024,1777948241000,-2025.61,0.00012328,2]
[421607025,1777948241000,-500.0,0.00012328,2]
[421607023,1777948241000,-500.0,0.00012328,2]
[421607026,1777948241000,-2858.31,0.00012328,2]
[421607015,1777948241000,-1130.14,0.00012328,2]
[421607029,1777948241000,-501.58769038,0.00012328,2]
[421607030,1777948241000,-500.78413787,0.00012328,2]
[421607027,1777948241000,-500.85513279,0.00012328,2]
[421607020,1777948241000,-273.25458334,0.00012328,2]
[421607022,1777948241000,-500.3322781,0.00012328,2]
[421607028,1777948241000,-1619.22,0.00012328,2]
[421607021,1777948241000,-502.29335411,0.00012328,2]
[421607019,1777948241000,-1058.3,0.00012328,2]
[421607031,1777948241000,-954.17,0.00012328,2]
[421607104,1777948242000,-500.0,0.00012328,2]
[421607097,1777948242000,-591.56,0.00012328,2]
[421607102,1777948242000,-500.0,0.00012328,2]
[421607100,1777948242000,-524.23,0.00012328,2]
[421607103,1777948242000,-951.66,0.00012328,2]
[421607108,1777948242000,-500.0,0.00012328,2]
[421607101,1777948242000,-500.0,0.00012328,2]
[421607106,1777948242000,-500.0,0.00012328,2]
[421607105,1777948242000,-1567.11,0.00012328,2]
[421607109,1777948242000,-12715.76,0.00012328,2]
[421607110,1777948242000,-500.0,0.00012328,2]
[421607099,1777948242000,-500.0,0.00012328,2]
[421607107,1777948242000,-500.0,0.00012328,2]
[421607123,1777948242000,-151.0,0.00012328,2]
[421607113,1777948242000,-500.0,0.00012328,2]
[421607116,1777948242000,-500.0,0.00012328,2]
[421607114,1777948242000,-234.7379679,0.00012328,2]
[421607112,1777948242000,-2413.08,0.00012328,2]
[421607122,1777948242000,-151.0,0.00012328,2]
[421607117,1777948242000,-500.0,0.00012328,2]
[421607125,1777948242000,-151.0,0.00012328,2]
[421607115,1777948242000,-500.0,0.00012328,2]
[421607066,1777948242000,-500.0,0.00012328,2]
[421607120,1777948242000,-8149.78,0.00012328,2]
[421607121,1777948242000,-600.77,0.00012328,2]
[421607118,1777948242000,-11115.21,0.00012328,2]
[421607098,1777948242000,-500.0,0.00012328,2]
[421607111,1777948242000,-805.17,0.00012328,2]
[421607090,1777948242000,-500.0,0.00012328,2]
[421607078,1777948242000,-405.741825,0.00012328,2]
[421607095,1777948242000,-4810.84,0.00012328,2]
[421607068,1777948242000,-500.0,0.00012328,2]
[421607067,1777948242000,-500.0,0.00012328,2]
[421607064,1777948242000,-501.33274601,0.00012328,2]